Cogmind - Beta 10.2 @@@ ROGUE MODE // 2021.01.15 @ 23:42:25 Player: Joking_Phantom Result: Destroyed self via exploding Nuclear Reactor Performance ------------- Evolutions (3) 1500 Regions Visited (9) 1800 Robots Destroyed (317) 1585 Value Destroyed (11418) 11418 Prototype IDs (49) 980 Alien Tech Used (0) 0 Bonus (8317) 8317 TOTAL SCORE: 25600 Bonus ------- Triggered High Security 1000 High Alert Combat Kills 6531 Follower Combat Kills 46 Entered Garrisons 200 Used RIF Installer 500 Aligned with FarCom 300 Friendly Fire -260 Cogmind --------- Core Integrity 0/700 Matter 120/300 Energy 100/100 System Corruption 14% Temperature Cool (12) Movement Treading (170) Location -7/Factory Parts ------- > --- POWER (1) -------- (None) > --- PROPULSION (2) --- Armored Treads Armored Treads > --- UTILITY (6) ------ Advanced Heat Sink Coolant Injector Medium Storage Unit Weapon Cycler Improved Propulsion Shielding > --- WEAPON (4) ------- Flak Gun Flak Gun Flak Gun Heavy Rocket Launcher > --- INVENTORY (8) ---- Armored Treads Improved Light Armor Plating Improved EM Pulse Cannon Improved EM Pulse Cannon Improved EM Pulse Cannon Heavy Rocket Launcher Heavy Rocket Launcher Heavy Rocket Launcher Peak State ------------ > --- POWER ------------ Heavy Deuterium Engine > --- PROPULSION ------- Armored Treads Armored Treads > --- UTILITY ---------- Advanced Heat Sink Coolant Injector Medium Storage Unit Weapon Cycler Improved Propulsion Shielding System Backup Module > --- WEAPON ----------- Improved EM Pulse Cannon Heavy Rocket Launcher Heavy Rocket Launcher Heavy Rocket Launcher > --- INVENTORY -------- Improved Light Armor Plating Improved EM Pulse Cannon Improved EM Pulse Cannon Flak Gun Flak Gun Flak Gun Heavy Rocket Launcher Improved Datajack [Rating: 51] Favorites ----------- Power Light Ion Engine Engine Light Ion Engine Propulsion Armored Treads Treads Armored Treads Leg Aluminum Leg Wheel Compact Wheel Hover Unit Airjet Utility Large Storage Unit Device Advanced Heat Sink Storage Large Storage Unit Processor Signal Interpreter Protection Hardened Light Armor Plating Weapon Improved Light Cannon Energy Gun Heavy EM Shotgun Energy Cannon Improved EM Pulse Cannon Ballistic Gun Minigun Ballistic Cannon Improved Light Cannon Launcher Rocket Launcher Slashing Weapon Katana Special Melee Weapon Datajack Build | -11 -10 -10 -10 -9 -8 -8 -7 -7 -7 ------- Run | Scr Mat Min Exi Min Mat Gar Fac Was Fac Slots Evolved 6 | . . . . . 4 . 2 . . Power . | . . . . . . . . . . Propulsion . | . . . . . . . . . . Utility 4 | . . . . . 4 . . . . Weapon 2 | . . . . . . . 2 . . Parts Attached 267 | 1 10 2 4 1 133 26 58 2 30 Power 16 | . 1 . . . 7 2 4 . 2 Engine 16 | . 1 . . . 7 2 4 . 2 Core . | . . . . . . . . . . Reactor . | . . . . . . . . . . Propulsion 44 | . 2 . . . 17 2 17 1 5 Treads 29 | . 2 . . . 11 2 10 1 3 Leg . | . . . . . . . . . . Wheel 14 | . . . . . 6 . 7 . 1 Hover 1 | . . . . . . . . . 1 Flight . | . . . . . . . . . . Utility 82 | 1 2 2 1 . 32 12 25 . 7 Device 27 | . . 1 . . 7 2 12 . 5 Storage 17 | 1 2 1 1 . 6 2 3 . 1 Processor 1 | . . . . . 1 . . . . Hackware . | . . . . . . . . . . Protection 37 | . . . . . 18 8 10 . 1 Artifact . | . . . . . . . . . . Weapon 125 | . 5 . 3 1 77 10 12 1 16 Energy Gun 18 | . . . . . 15 1 2 . . Energy Cannon 20 | . 2 . 1 . 12 . . 1 4 Ballistic Gun 32 | . 1 . . . 20 1 5 . 5 Ballistic Cannon 13 | . 2 . 1 . 2 4 3 . 1 Launcher 32 | . . . . 1 24 1 2 . 4 Special Weapon . | . . . . . . . . . . Impact Weapon . | . . . . . . . . . . Slashing Weapon 4 | . . . . . 1 3 . . . Piercing Weapon . | . . . . . . . . . . Special Melee Weapon 6 | . . . 1 . 3 . . . 2 Unidentified Prototypes 5 | . . 1 . . 2 . 1 . 1 Parts Lost 42 | . . . . . 19 3 13 2 5 Power 7 | . . . . . 2 . 3 . 2 Propulsion 8 | . . . . . 4 . 1 2 1 Utility 17 | . . . . . 8 3 4 . 2 Weapon 10 | . . . . . 5 . 5 . . Highest Loss Streak 10 | . . . . . 7 3 10 2 2 Average Slot Usage (%) 88 | . 99 100 87 85 87 93 89 24 73 Engine 9 | . 14 14 14 14 8 9 6 4 5 Treads 15 | . 14 28 28 28 12 17 8 9 7 Wheel 2 | . . . . . 5 . 5 . 2 Device 4 | . . . . . 3 6 10 4 19 Storage 17 | . 28 28 16 14 15 23 16 . 4 Protection 14 | . . . . . 25 17 11 . 3 Energy Gun 2 | . 4 . . . 4 4 . . . Energy Cannon 1 | . 6 . . . 1 . . 4 8 Ballistic Gun 4 | . 11 . . . 4 1 18 . 6 Ballistic Cannon 7 | . 5 28 22 14 1 12 5 . . Launcher 2 | . . . . 4 4 . . . 7 Special Melee Weapon 1 | . . . 5 9 . . . . 1 Naked Turns 62 | . . . . . . . 6 45 11 Heaviest Build 211 | 15 43 43 91 91 205 211 211 19 53 Greatest Support 51 | 20 40 40 40 40 40 40 40 51 40 Greatest Overweight (x) 10 | . 1 1 2 2 10 6 6 . 3 Average Overweight (x) 1 | . . . 1 2 2 1 1 . 1 Largest Inventory Capacity 56 | 8 16 16 24 24 56 56 56 4 8 Average Capacity 22 | 6 15 15 22 24 26 27 22 4 6 Most Carried 56 | 7 16 16 20 24 56 56 56 3 8 Average Carried 19 | 6 13 15 13 22 22 25 20 1 6 Final Capacity 56 | 8 16 16 24 24 56 56 16 4 8 Final Carried 56 | 7 16 16 20 24 56 56 16 3 8 Class Distribution -------------------- 46% | Mutant 44% | Hauler-Mutant 4% | Skirmisher Dominant Class ---------------- Mutant | -10/Materials Mutant | -10/Mines Hauler-Mutant | -10/Exiles Hauler-Mutant | -9/Mines Hauler-Mutant | -8/Materials Mutant | -8/Garrison Tank | -7/Factory Mutant | -7/Waste Skirmisher | -7/Factory Resources | -11 -10 -10 -10 -9 -8 -8 -7 -7 -7 ----------- Run | Scr Mat Min Exi Min Mat Gar Fac Was Fac Matter Collected 8258 | 237 522 181 76 101 3888 585 1849 . 819 Remotely 1509 | . . . . . . . 1238 . 271 Salvage Created 10334 | 73 659 325 . 179 5700 423 1802 . 1173 Parts 546 | 2 48 24 . 13 305 25 78 . 51 Haulers Intercepted 8 | . 1 . . . 5 . . . 2 Recyclers Shooed 11 | . 1 1 . . 5 . 3 . 1 Parts Field Recycled . | . . . . . . . . . . Retrieved Matter . | . . . . . . . . . . Parts Self-Destructed . | . . . . . . . . . . Prevented . | . . . . . . . . . . Kills | -11 -10 -10 -10 -9 -8 -8 -7 -7 -7 ------- Run | Scr Mat Min Exi Min Mat Gar Fac Was Fac Combat Hostiles Destroyed 226 | . 16 7 . 9 131 16 28 . 19 Guns 66 | . 9 . . . 33 1 16 . 7 Cannons 45 | . 7 7 . 1 10 14 6 . . AOE 112 | . . . . 8 88 1 6 . 9 Classes Destroyed 16 | 1 6 . . 1 7 . 1 . . Worker 21 | . 2 2 . . 14 . 1 . 2 Builder 22 | . . . . . 20 . 1 . 1 Tunneler 7 | . 1 1 . . 4 . 1 . . Hauler 8 | . 1 . . . 5 . . . 2 Recycler 16 | 1 . 2 . . 6 . 4 . 3 Mechanic 6 | . . . . . 5 . . . 1 Operator 4 | . . . . . 4 . . . . Watcher 7 | . 1 . . . 5 . 1 . . Swarmer 20 | . 3 3 . 2 8 4 . . . Grunt 139 | . 13 4 . 6 82 8 15 . 11 Brawler 13 | . . . . . 10 1 1 . 1 Duelist 18 | . . . . . 12 2 1 . 3 Protector 9 | . . . . 1 7 . 1 . . Sentry 17 | . . . . . 9 1 6 . 1 Hunter 6 | . . . . . 3 . 2 . 1 Programmer 4 | . . . . . . . 2 . 2 Best Kill Streak 19 | 1 4 4 . 5 19 6 7 . 9 Combat Bots Only 18 | . 4 3 . 5 18 6 5 . 5 Max Kills in Single Turn 5 | 1 2 1 . 2 5 1 3 . 4 Gunslinging . | . . . . . . . . . . Exploded 3 | . . . . 2 3 1 1 . 3 Melee . | . . . . . . . . . . Uniques/NPCs Destroyed . | . . . . . . . . . . Combat | -11 -10 -10 -10 -9 -8 -8 -7 -7 -7 -------- Run | Scr Mat Min Exi Min Mat Gar Fac Was Fac Damage Taken 10432 | . 495 44 . 114 4460 728 3443 126 1022 Core 1283 | . 78 12 . 17 351 93 441 70 221 Absorbed by Shields 338 | . . . . . 114 83 141 . . Core Remaining (%) 58 | 100 . . . 57 . 19 . . . Volleys Fired 540 | 9 54 18 . 11 292 44 71 . 41 Largest 4 | 2 2 2 . 1 2 2 4 . 4 Hottest 207 | 70 80 78 . 39 101 88 147 . 207 Shots Fired 1043 | 18 108 36 . 11 440 73 252 . 105 Gun 561 | 18 56 . . . 218 17 188 . 64 Cannon 300 | . 52 36 . 3 69 53 57 . 30 Launcher 182 | . . . . 8 153 3 7 . 11 Special . | . . . . . . . . . . Kinetic 647 | 9 66 36 . 3 158 61 237 . 77 Thermal 60 | 9 42 . . . 9 . . . . Explosive 151 | . . . . 8 132 . . . 11 Electromagnetic 185 | . . . . . 141 12 15 . 17 Robot Hit Streak 22 | 3 7 9 . 4 22 10 22 . 9 Robot Miss Streak 7 | 2 4 2 . 1 3 7 5 . 7 Penetration Max 1 | . . . . . 1 . . . . Secondary Targets 4 | . . . . . 4 . . . . Max Gunslinging Chain 1 | . . . . . 1 . . . . Shots Hit Robots 688 | 10 74 23 4 12 260 33 185 . 87 Core Hits 737 | 2 28 14 . 16 407 55 141 . 74 Critical Hits 4 | . . . . . 2 . 1 . 1 Critical Kills 2 | . . . . . 1 . 1 . . Critical Parts Destroyed 1 | . . . . . . . . . 1 Melee Attacks 25 | . . . 4 5 8 6 . . 2 Impact . | . . . . . . . . . . Slashing 7 | . . . . . 1 6 . . . Piercing . | . . . . . . . . . . Sneak Attacks 16 | . . . 4 5 6 . . . 1 Combat Hostiles . | . . . . . . . . . . Follow-up Attacks . | . . . . . . . . . . Damage Inflicted 28512 | 92 1072 530 . 703 17334 1106 4482 . 3193 Guns 7086 | 92 500 . . . 2919 90 2506 . 979 Cannons 4165 | . 572 526 . 61 876 915 671 . 544 Explosions 16982 | . . . . 613 13303 101 1295 . 1670 Melee . | . . . . . . . . . . Ramming 279 | . . 4 . 29 236 . 10 . . Kinetic 8297 | 28 593 526 . 61 1953 1005 3039 . 1092 Thermal 1541 | 64 479 . . . 577 . 289 . 132 Explosive 14081 | . . . . 613 11597 . 333 . 1538 Electromagnetic 4314 | . . . . . 2971 101 811 . 431 Impact . | . . . . . . . . . . Slashing . | . . . . . . . . . . Piercing . | . . . . . . . . . . Highest Corruption 16 | . . . . . 5 1 9 14 16 Average Corruption 4 | . . . . . 3 1 5 13 14 Corruption Purged 9 | . . . . . 5 . . . 4 Effects 124 | . . . . . 28 12 9 6 69 Message Errors 25 | . . . . . 6 4 . 1 14 Matter Fused 18 | . . . . . 3 . 2 1 12 Heat Flow Errors 6 | . . . . . 2 . . 1 3 Energy Discharges 14 | . . . . . 2 3 1 . 8 Parts Rejected 1 | . . . . . . . . 1 . Data Loss (minor) 14 | . . . . . 4 4 1 . 5 Data Loss (major) 3 | . . . . . 1 . . . 2 Misfires 3 | . . . . . 1 . . . 2 Misdirections 11 | . . . . . . . . 2 9 Targeting Errors 23 | . . . . . 6 1 4 . 12 Weapon Failures 6 | . . . . . 3 . 1 . 2 Overload Shots . | . . . . . . . . . . Overflow Damage 524 | . . 3 . . 334 . 42 . 145 Projectiles 40 | . . 3 . . 28 . . . 9 Explosions 467 | . . . . . 289 . 42 . 136 Melee 17 | . . . . . 17 . . . . Knockbacks 55 | . 2 6 . 1 2 29 15 . . Impact 1 | . . . . 1 . . . . . Kinetic 52 | . 2 6 . . 2 28 14 . . Secondary 2 | . . . . . . 1 1 . . Self-Inflicted Damage 692 | . . . . . 245 . 83 . 364 Shots 21 | . . . . . 15 . 2 . 4 Rammed 32 | . . 2 . 2 26 . 2 . . Targets Rammed 32 | . . 2 . 2 26 . 2 . . Kicked . | . . . . . . . . . . Crushed . | . . . . . . . . . . Highest Temperature 473 | 56 234 72 . 11 473 279 365 123 264 Average Temperature 77 | 22 77 27 . 5 81 79 72 72 78 Received Heat Transfer 3408 | . 240 12 . 57 1589 306 997 . 207 Effects 13 | . . . . . 6 3 . . 4 Energy Bleed 3 | . . . . . 2 1 . . . Interference 9 | . . . . . 3 2 . . 4 Short Circuit 1 | . . . . . 1 . . . . Siege Activations . | . . . . . . . . . . Robots Corrupted 5 | . . . . . 2 . . . 3 Combat Hostiles 3 | . . . . . . . . . 3 Parts Fried 21 | . . . . . 16 . . . 5 Impact Corruptions 1 | . . . . . 1 . . . . Robots Melted . | . . . . . . . . . . Combat Hostiles . | . . . . . . . . . . Parts Melted 2 | . . . . . 2 . . . . Heat Transferred 2643 | 185 1110 . . . 848 . 400 . 100 Parts Sabotaged . | . . . . . . . . . . Parts Stolen . | . . . . . . . . . . Parts Stripped . | . . . . . . . . . . Power Chain Reactions 17 | . . . . . 12 1 4 . . Missiles Intercepted . | . . . . . . . . . . Latent Energy Used 291 | . . . . . 291 . . . . LE Corruption 6 | . . . . . 6 . . . . Alert | -11 -10 -10 -10 -9 -8 -8 -7 -7 -7 ------- Run | Scr Mat Min Exi Min Mat Gar Fac Was Fac Peak Influence 3474 | 5 221 215 . 248 3474 2824 2535 1100 1054 Initial 2258 | . 3 80 . . 96 2258 1482 1100 756 Average 1229 | 2 100 71 . 58 1258 2644 1888 1091 891 Maximum Alert Level 5 | . 1 1 . 1 5 5 5 4 3 Low Security (%) 26 | 100 91 90 . 81 14 . . . . Level 1 5 | . 8 9 . 18 5 . . . . Level 2 8 | . . . . . 18 . . . . Level 3 17 | . . . . . 19 . . 42 100 Level 4 8 | . . . . . 10 . 42 57 . Level 5 26 | . . . . . 19 100 22 . . High Security 7 | . . . . . 10 . 35 . . Max Security . | . . . . . . . . . . Sterilizations 1 | . . . . . 1 . . . . Squads Dispatched 72 | . 5 . . 1 31 . 22 . 13 Investigation 8 | . 5 . . . 1 . 1 . 1 Extermination 2 | . . . . . . . 1 . 1 Reinforcement 16 | . . . . . 11 . 1 . 4 Assault 36 | . . . . 1 16 . 15 . 4 Garrison 10 | . . . . . 3 . 4 . 3 Intercept . | . . . . . . . . . . Construction Impeded 12 | . . . . . 9 . 1 . 2 Haulers Reinforced 1 | . . . . . . . . . 1 Stealth | -11 -10 -10 -10 -9 -8 -8 -7 -7 -7 --------- Run | Scr Mat Min Exi Min Mat Gar Fac Was Fac Distress Signals 6 | . . . . . 4 . 2 . . Communications Jammed . | . . . . . . . . . . Distress Signals . | . . . . . . . . . . Times Spotted 337 | . 18 6 . 10 173 17 81 6 26 Peak Tracking Total 27 | . 4 2 . 5 17 6 27 6 4 Tactical Retreats 11 | . . . . . 2 1 8 . . Traps | -11 -10 -10 -10 -9 -8 -8 -7 -7 -7 ------- Run | Scr Mat Min Exi Min Mat Gar Fac Was Fac Traps Triggered 12 | . 1 . . . . 9 1 . 1 Indirectly . | . . . . . . . . . . Trap Hack Attempts 12 | . . . . . 3 . . . 9 Triggered . | . . . . . . . . . . Disarmed 2 | . . . . . 2 . . . . Reprogrammed 1 | . . . . . . . . . 1 Reused 1 | . . . . . . . . . 1 Traps Extracted . | . . . . . . . . . . Installed . | . . . . . . . . . . Triggered 2 | . . . . . . . 1 . 1 Machines | -11 -10 -10 -10 -9 -8 -8 -7 -7 -7 ---------- Run | Scr Mat Min Exi Min Mat Gar Fac Was Fac Machines Disabled 45 | . . 1 . . 8 5 22 . 9 Max in Single Turn 15 | . . 1 . . 1 1 15 . 4 Garrison Relay 3 | . . . . . . 3 . . . Phase Generator 1 | . . . . . . 1 . . . Machines Sabotaged . | . . . . . . . . . . Garrisons Compromised . | . . . . . . . . . . Overloaded Fab Kills . | . . . . . . . . . . Fab Network Shutdowns . | . . . . . . . . . . Hacking | -11 -10 -10 -10 -9 -8 -8 -7 -7 -7 --------- Run | Scr Mat Min Exi Min Mat Gar Fac Was Fac Machines Accessed 30 | . 10 . 2 . 12 . 3 . 3 Terminals 18 | . 7 . . . 7 . 1 . 3 Fabricators . | . . . . . . . . . . Repair Stations 2 | . 1 . . . 1 . . . . Recycling Units 5 | . 2 . . . 1 . 2 . . Scanalyzers 2 | . . . . . 2 . . . . Garrison Access 1 | . . . . . 1 . . . . Total Hacks 79 | . 28 . 2 . 39 . 6 . 4 Successful 50 | . 17 . 2 . 28 . 3 . . Failed 29 | . 11 . . . 11 . 3 . 4 Catastrophic 4 | . . . . . . . 1 . 3 Database Lockouts . | . . . . . . . . . . Manual 49 | . 19 . 1 . 22 . 5 . 2 Terminals 50 | . 23 . . . 22 . 1 . 4 Fabricators . | . . . . . . . . . . Repair Stations 5 | . 3 . . . 2 . . . . Recycling Units 10 | . 2 . . . 3 . 5 . . Scanalyzers 8 | . . . . . 8 . . . . Garrison Access 4 | . . . . . 4 . . . . Terminal Hacks 14 | . 8 . 2 . 4 . . . . Record 1 | . . . 1 . . . . . . Part Schematic 1 | . 1 . . . . . . . . Robot Analysis 4 | . 3 . . . 1 . . . . Prototype ID Bank 6 | . 4 . . . 2 . . . . Locate Traps 1 | . . . . . 1 . . . . EX-Prototype ID Bank 1 | . . . 1 . . . . . . Fabricator Hacks . | . . . . . . . . . . Repair Station Hacks 4 | . 2 . . . 2 . . . . Scan Component 2 | . 1 . . . 1 . . . . Repair 2 | . 1 . . . 1 . . . . Recycling Unit Hacks . | . . . . . . . . . . Scanalyzer 7 | . . . . . 7 . . . . Insert Component 3 | . . . . . 3 . . . . Analyze 4 | . . . . . 4 . . . . Garrison Access Hacks 1 | . . . . . 1 . . . . Unlock Access 1 | . . . . . 1 . . . . Unauthorized Hacks 24 | . 7 . . . 14 . 3 . . Terminals 15 | . 5 . . . 10 . . . . Track 7 | . 2 . . . 5 . . . . Assimilate 2 | . . . . . 2 . . . . Botnet 6 | . 3 . . . 3 . . . . Fabricators . | . . . . . . . . . . Repair Stations . | . . . . . . . . . . Recycling Units 6 | . 2 . . . 1 . 3 . . Recyclers 1 | . . . . . . . 1 . . Mask 3 | . . . . . 1 . 2 . . Tunnel 2 | . 2 . . . . . . . . Scanalyzers . | . . . . . . . . . . Garrison Access 3 | . . . . . 3 . . . . Broadcast 1 | . . . . . 1 . . . . Intercept 1 | . . . . . 1 . . . . Watchers 1 | . . . . . 1 . . . . Data Cores Recovered . | . . . . . . . . . . Used . | . . . . . . . . . . Hacking Detections 22 | . 7 . . . 10 . 2 . 3 Full Trace Events 7 | . 4 . . . 2 . . . 1 Feedback Events . | . . . . . . . . . . Feedback Blocked . | . . . . . . . . . . Robot Schematics Acquired . | . . . . . . . . . . Robots Built . | . . . . . . . . . . Matter . | . . . . . . . . . . Time . | . . . . . . . . . . Total Robot Build Rating . | . . . . . . . . . . Part Schematics Acquired 4 | . 1 . . . 3 . . . . Parts Built . | . . . . . . . . . . Matter . | . . . . . . . . . . Time . | . . . . . . . . . . Total Part Build Rating . | . . . . . . . . . . Parts Repaired 2 | . 1 . . . 1 . . . . Time 58 | . 26 . . . 32 . . . . Parts Recycled . | . . . . . . . . . . Recycled Matter . | . . . . . . . . . . Retrieved Matter . | . . . . . . . . . . Retrieved Components . | . . . . . . . . . . Parts Scanalyzed 3 | . . . . . 3 . . . . Part Schematics Acquired 3 | . . . . . 3 . . . . Parts Damaged . | . . . . . . . . . . Bothacking | -11 -10 -10 -10 -9 -8 -8 -7 -7 -7 ------------ Run | Scr Mat Min Exi Min Mat Gar Fac Was Fac Used RIF Installer 1 | . . . . . . 1 . . . Robots Hacked 12 | . . . 4 2 4 . . . 2 Non-combat 10 | . . . 3 2 3 . . . 2 Combat 2 | . . . 1 . 1 . . . . Robot Hacks Applied 13 | . . . 4 2 5 . . . 2 parse_system 8 | . . . 4 1 2 . . . 1 no_distress 3 | . . . . 1 2 . . . . find_station 2 | . . . . . 1 . . . 1 Relay Couplers Released 13 | . . . . . . 13 . . . Machine Destruction 13 | . . . . . . 13 . . . Robots Rewired . | . . . . . . . . . . Allies Hacked . | . . . . . . . . . . Hacks Repelled . | . . . . . . . . . . Allies | -11 -10 -10 -10 -9 -8 -8 -7 -7 -7 -------- Run | Scr Mat Min Exi Min Mat Gar Fac Was Fac Total Allies 4 | . . 1 . 1 2 . . . . Largest Group 2 | . . 1 1 1 2 . . . . Highest-Rated Group 31 | . . 31 31 31 31 . . . . Highest-Rated Ally 31 | . . 31 31 31 31 . . . . Total Orders . | . . . . . . . . . . Ally Attacks 11 | . . . . 9 2 . . . . Total Damage 166 | . . . . 124 42 . . . . Kills 4 | . . . . 2 2 . . . . Allies Corrupted . | . . . . . . . . . . Allies Melted . | . . . . . . . . . . Intel | -11 -10 -10 -10 -9 -8 -8 -7 -7 -7 ------- Run | Scr Mat Min Exi Min Mat Gar Fac Was Fac Robot Analysis Total 4 | . 3 . . . 1 . . . . Derelict Logs Recovered 3 | . . 2 . 1 . . . . . Drone Launches . | . . . . . . . . . . Drone Recoveries . | . . . . . . . . . . Exploration | -11 -10 -10 -10 -9 -8 -8 -7 -7 -7 ------------- Run | Scr Mat Min Exi Min Mat Gar Fac Was Fac Turns Passed 16502 | 52 1048 1252 1049 1196 6880 2540 1128 111 1246 Spaces Moved 7527 | 19 530 656 521 574 2810 1090 578 126 623 Core 287 | . . . . . . . 126 87 74 Treads 5336 | . 272 656 521 574 1581 1066 156 39 471 Legs 277 | 19 258 . . . . . . . . Wheels 1611 | . . . . . 1229 24 296 . 62 Hover 16 | . . . . . . . . . 16 Flight . | . . . . . . . . . . Fastest Speed 50 | 120 120 160 160 200 110 140 50 50 50 Average Speed 177 | 120 157 179 195 200 178 206 130 83 168 Slowest Speed 370 | 120 180 180 200 200 370 270 290 170 210 Overloaded Moves . | . . . . . . . . . . Propulsion Burnouts . | . . . . . . . . . . Robots Hopped . | . . . . . . . . . . Cave-ins Triggered . | . . . . . . . . . . Exploration Rate (%) 65 | 3 94 99 70 96 98 75 14 84 20 Regions Visited 9 Branch Regions 3 Pre-discovered Areas 6 | . 2 1 1 2 . . . . . Known Exits Taken 1 | . . . . . 1 . . . . Unknown Exits Taken 5 | 1 1 1 1 1 . . . . . Scrap Searched 3 | . . 1 . 2 . . . . . Spaces Dug 52 | . . . . 8 44 . . . . Terrain Destroyed 1090 | . 2 2 . 60 824 95 31 . 76 Melee 1 | . . . . . 1 . . . . Projectile 20 | . 2 2 . . 11 . 1 . 4 AOE 1069 | . . . . 60 812 95 30 . 72 Terrain Rammed . | . . . . . . . . . . Walls Destroyed . | . . . . . . . . . . Machines Disabled . | . . . . . . . . . . Actions | -11 -10 -10 -10 -9 -8 -8 -7 -7 -7 --------- Run | Scr Mat Min Exi Min Mat Gar Fac Was Fac Total 9771 | 29 639 691 548 605 4232 1309 843 131 744 Wait 794 | . 16 4 . 5 687 33 40 1 8 Move 7519 | 18 529 655 520 573 2809 1089 578 125 623 Hop . | . . . . . . . . . . Pick Up 290 | 1 18 7 16 6 152 48 31 2 9 Fast Attach 61 | 1 4 2 1 . 18 5 10 2 18 Attach 63 | . . . 2 . 30 8 20 . 3 Detach 13 | . . . 1 . 6 1 4 . 1 Swap 143 | . 6 . 1 1 85 13 28 . 9 Drop 251 | . 12 3 3 2 116 49 59 1 6 Fire 540 | 9 54 18 . 11 292 44 71 . 41 Melee 25 | . . . 4 5 8 6 . . 2 Ram 2 | . . . . . . . 2 . . Kick . | . . . . . . . . . . Crush 30 | . . 2 . 2 26 . . . . Escape Stasis 28 | . . . . . . 13 . . 15 Rewire . | . . . . . . . . . . Trap 12 | . . . . . 3 . . . 9 Miscellaneous . | . . . . . . . . . . Route ------- -11/Scrapyard -10/Materials (discovered 4 exits: *Mat x3 / [*Min]) -10/Mines (discovered 3 exits: *Mat x2 / *Exi) -10/Exiles -9/Mines (discovered 2 exits: *Mat x2) -8/Materials (discovered 4 exits: *Fac x3 / Gar) -8/Garrison (discovered 3 exits: *Fac x3) -7/Factory -7/Waste -7/Factory (discovered 1 exit: [*Fac]) History --------- Turn | Location | Event 16 | -11/Scrapyard | Discovered new exit (range 3) 53 | -11/Scrapyard | Entered Materials 138 | -10/Materials | Met 8R-AWN 144 | -10/Materials | Discovered new exit (range 13) 188 | -10/Materials | Discovered new exit (range 11) 317 | -10/Materials | Build established: Mutant 456 | -10/Materials | Discovered new exit (range 5) 603 | -10/Materials | Repaired Lgt. Treads 720 | -10/Materials | Discovered new exit (range 10) 1101 | -10/Materials | Entered Mines 1103 | -10/Mines | Followed 8R-AWN into the Mines 1116 | -10/Mines | Discovered new exit (range 3) 1143 | -10/Mines | Discovered new exit (range 5) 1568 | -10/Mines | Learned location of Storage (-7) 1580 | -10/Mines | Found a damaged Exp. Sensor Array with a note attached 1584 | -10/Mines | Found Prototype Device 1584 | -10/Mines | Identified Exp. Sensor Array 1694 | -10/Mines | Identified exit to Materials 2146 | -10/Mines | Received a Mining Laser from a helpful Derelict 2353 | -10/Mines | Entered Exiles 2353 | -10/Exiles | Accompanied by 1 ally 2398 | -10/Exiles | Welcomed by 8R-AWN 2429 | -10/Exiles | Met EX-HEX 2573 | -10/Exiles | Met EX-DEC 2607 | -10/Exiles | Learned location of Zion (-7) 2655 | -10/Exiles | Met EX-BIN 2701 | -10/Exiles | Aligned with FarCom system 2703 | -10/Exiles | Given EX-Vault access code 2763 | -10/Exiles | Opened EX-Vault 2773 | -10/Exiles | Found Latent Energy Streamer 2815 | -10/Exiles | Warned to stay clear of 0b10 Research branches 2835 | -10/Exiles | Build established: Hauler-Mutant 3130 | -10/Exiles | Learned about 8R-AWN's background 3380 | -10/Exiles | Discovered new exit (range 14) 3402 | -10/Exiles | Left Exiles lab with Latent Energy Streamer 3402 | -10/Exiles | Entered Mines 3519 | -9/Mines | Discovered new exit (range 9) 3925 | -9/Mines | Found a hidden stash of uninstalled traps 4141 | -9/Mines | Received a Rocket Launcher from a helpful Derelict 4213 | -9/Mines | Met a Derelict testing a Signal Generator 4223 | -9/Mines | Found Signal Generator 4588 | -9/Mines | Discovered new exit (range 4) 4598 | -9/Mines | Entered Materials 4598 | -8/Materials | Accompanied by 1 ally 4598 | -8/Materials | Evolved 4 slots: Utility x4 5307 | -8/Materials | Discovered new exit (range 10) 6821 | -8/Materials | Discovered new exit (range 7) 6831 | -8/Materials | Identified exit to Factory 6847 | -8/Materials | Repaired Rocket Launcher 7288 | -8/Materials | Discovered exit to Factory (range 14) 7657 | -8/Materials | Garrison activated, responded to threat 7782 | -8/Materials | Identified exit to Garrison 8598 | -8/Materials | First assault squad dispatched 8995 | -8/Materials | Build established: Mutant 9073 | -8/Materials | Destroyed 9 combat bots 10745 | -8/Materials | High security lockdown imminent 10825 | -8/Materials | High security lockdown engaged 10949 | -8/Materials | Destroyed 18 combat bots 10951 | -8/Materials | Lost 7 parts (1p1n3u2w) 11003 | -8/Materials | Core integrity fell below 50% 11021 | -8/Materials | Sterilization system engaged 11021 | -8/Materials | Non-combat units ordered to evacuate 11056 | -8/Materials | Destroyed 17 combat bots 11065 | -8/Materials | Lost 7 parts (2n2u3w) 11121 | -8/Materials | Combat units ordered to evacuate 11321 | -8/Materials | Ambient heat levels rising (+10) 11455 | -8/Materials | Build established: Hauler-Mutant 11471 | -8/Materials | Ambient heat levels rising (+10) 11478 | -8/Materials | Entered Garrison 11486 | -8/Garrison | Installed Relay Interface Framework 11600 | -8/Garrison | Triggered checkpoint 11623 | -8/Garrison | Garrison Relay disabled 11734 | -8/Garrison | Triggered checkpoint 11803 | -8/Garrison | Build established: Mutant 11820 | -8/Garrison | Triggered checkpoint 11867 | -8/Garrison | Garrison Relay disabled 11936 | -8/Garrison | Discovered exit to Factory (range 8) 11994 | -8/Garrison | Triggered checkpoint 12120 | -8/Garrison | Discovered exit to Factory (range 10) 12360 | -8/Garrison | Triggered checkpoint 12523 | -8/Garrison | Garrison Relay disabled 12574 | -8/Garrison | Triggered checkpoint 12611 | -8/Garrison | Core integrity fell below 20% 12647 | -8/Garrison | Lost 3 parts (3u) 12679 | -8/Garrison | Discovered exit to Factory (range 15) 12879 | -8/Garrison | Phase Generator disabled 13048 | -8/Garrison | Triggered checkpoint 13606 | -8/Garrison | Build established: Hauler-Mutant 14018 | -8/Garrison | Entered Factory 14018 | -7/Factory | Evolved 2 slots: Weapon x2 14409 | -7/Factory | Build established: Tank 14418 | -7/Factory | First assault squad dispatched 14557 | -7/Factory | Discovered new exit (range 5) 14602 | -7/Factory | Lost 3 parts (1p1u1w) 14626 | -7/Factory | Garrison activated, responded to threat 14748 | -7/Factory | High security lockdown imminent 14828 | -7/Factory | High security lockdown engaged 15068 | -7/Factory | Released all parts (9) 15072 | -7/Factory | Core integrity fell below 50% 15098 | -7/Factory | Lost 10 parts (2p1n3u4w) 15146 | -7/Factory | Sucked down chute 15146 | -7/Factory | Entered Waste 15161 | -7/Waste | EMP discharged 15161 | -7/Waste | System corruption reached 10% 15162 | -7/Waste | Spotted C-40 Crusher 15162 | -7/Waste | Spotted C-40 Crusher 15165 | -7/Waste | Spotted C-40 Crusher 15199 | -7/Waste | Spotted C-40 Crusher 15210 | -7/Waste | Crushed by Compactor (1 part destroyed, 2 dropped) 15210 | -7/Waste | Spotted C-40 Crusher 15212 | -7/Waste | Crushed by Compactor (1 part destroyed, 1 dropped) 15227 | -7/Waste | Spotted C-40 Crusher 15243 | -7/Waste | Discovered new exit (range 16) 15257 | -7/Waste | Entered Factory 15347 | -7/Factory | Build established: Mutant 15385 | -7/Factory | Discovered new exit (range 15) 15657 | -7/Factory | First assault squad dispatched 15804 | -7/Factory | Core integrity fell below 20% 15806 | -7/Factory | Garrison activated, responded to threat 16167 | -7/Factory | Build established: Skirmisher 16503 | -7/Factory | Destroyed self via exploding Nuclear Reactor Last Messages --------------- 16443_ O-24 Administrator: "IFF HANDSHAKE FAILED. SECURING TERMINAL." 16444_ K-01 Serf cleans the Nuclear Reactor. 16451_ Connecting with Terminal... 16453_ ALERT: Hostiles spotted, dispatching reinforcements to Terminal F011. 16454_ System corrupted: Component data lost. 16454_ K-01 Serf cleans the Nuclear Reactor. 16457_ ALERT: Significant disruption in Zone 6J, assault force dispatched. 16462_ K-01 Serf cleans the Nuclear Reactor. 16474_ System corrupted: Matter fused (-6). 16492_ System corrupted: Flak Gun targeting data glitched. 16501_ P-60 Hacker destroyed. 16502_ K-01 Serf cleans the Nuclear Reactor. 16503_ Fusion Modulator explodes. 16503_ Hvy. Deuterium Engine destroyed. 16503_ Destroyed Hvy. Deuterium Engine. 16503_ System Backup Module destroyed. 16503_ Destroyed System Backup Module. 16503_ Nuclear Reactor explodes. 16503_ Fusion Modulator explodes. Map ----- +----------------------------------------------------+ | ?????????????????????????????????????????????????? | | ?????????????????????????????????????????????????? | | ?????????????????????????????????????????????????? | | ?????????????????????????????????????????????????? | | ?????????????????????????????????????????????????? | | ?????????????????????????????????????????????????? | | ?????????????????????????????????????????????????? | | ?????????????????????????????????????????????????# | | ?????????????????????????????????????????? | | ?????????????????????????? ???????????????##### | | ????????????????????????? ???????????????# | | ????????????????????????? ???????????????# | | ????????????????????????# #??????????????# ! | | ????????????????????????# #??????????????# | | ????????????????????????# #??????????????# | | ????????????????????????# #??????????????# ! | | ???????????????????????w+ +??????????????# ! | | ????????????????????????# k#??????????????# | | ????????????????????????# #??????????????##+## | | ??????????????#+####+#### #???????????????# #? | | ??????????????# [ u #???????????????# #? | | ??????????????# k #???????????????# #? | | ??????????????# #???????????????# ## | | ?????????? r# | ##############??# | | ?????????? u # #??# ## | | ??????????????# @ # #??# #? | | ??????????????# # #??# #? | | ??????????? # """ """ #??# #? | | ???????????####+## # """ """ #### #? | | ?????????????????# k # """ """ + #? | | ?????????????????# """ """ ^+ #### #? | | ?????????????????# """ """ # #??# #? | | ?????????????????# """ """ # #??# #? | | ?????????????????# # #??# #? | | ????????????????? ??""" """ # """ """ #??# #? | | ???????????????? ????"" """ =# """T""" #??# #? | | ??????????????? ??????"" """ ##############??#+#? | | ?????????????????????? o #???????????????? ?? | | ??????????????????????? #???????????????? ?? | | ???????????????????????########???????????????? ?? | | ??????????????????????????????????????????????? ?? | | ??????????????????????????????????????????????? ?? | | ??????????????????????????????????????????????? ?? | | ?????????????????????????????????????????????????? | | ?????????????????????????????????????????????????? | | ?????????????????????????????????????????????????? | | ?????????????????????????????????????????????????? | | ?????????????????????????????????????????????????? | | ?????????????????????????????????????????????????? | | ?????????????????????????????????????????????????? | +----------------------------------------------------+ Best States ------------- Heat Dissipation 53 Coolant Potential 65 Energy Generation 18 Energy Capacity 310 Matter Stores 300 Matter Capacity 300 Sight Range 16 Terrain Scan Density 10 Additional Mass Support 18 EM Shielding 2 Armor Coverage 825 Resistance: KI 20 Resistance: TH 10 Resistance: EM 15 Core Shielding 20 Propulsion Shielding 66 Utility Shielding 66 Weapon Cycling 15 Evasion (%) 50 Recoil Reduction 2 Item Schematics ----------------- Hcp. Storage Unit | -10/Materials | Hacked Humpback | -8/Materials | Scanalyzed Lrn. Tractor Beam | -8/Materials | Scanalyzed Exp. Sensor Array | -8/Materials | Scanalyzed Robot Schematics ------------------ None Fabricated ------------ Nothing Alien Tech Used ----------------- None Achievements -------------- None Challenges ------------ None Game ------ Seed SiegeDronePurifier Manual? 0 Play Time 02:54:54 Cumulative 629.5 hours Start 2021.01.01 @ 00:12:45 End 2021.01.15 @ 23:42:25 Sessions 27 Manual Loads 0 Difficulty Rogue Special Mode None Game No. 140 Rogue 92 Adventurer 0 Explorer 48 Win Type - Total 34 Types 3/1/6/17/0/4/1/1/1 Lore% 77 Gallery% 90 Achievement% 67 Wizard Run 0 Options --------- ASCII 0 Keyboard 0 Movement Mouse Keybinds 0 Fullscreen 2 Font 24/Crisp Map View 76x50 Tactical HUD 1 Map Filters NONE Filters NONE Steam 1 RUN: 7014b883-aee1-40f9-b548-655437d02685